bitfinex/quotes_SOLUSD_20250226
["timestamp","ask_amount","ask_price","bid_price","bid_amount"]
[1740589541154,1.78782333,137.68,137.63,20.03]
[1740589541859,1.78782333,137.68,137.63,0.03]
[1740589542068,19.07613357,137.67,137.63,0.03]
[1740589542364,1.78782333,137.66,137.63,0.03]
[1740589545862,84.64782333,137.68,137.63,0.03]
[1740589546042,82.86,137.68,137.63,0.03]
[1740589546846,20.8639569,137.67,137.63,0.03]
[1740589547061,19.07613357,137.65,137.63,0.03]
[1740589547274,84.64782333,137.66,137.63,0.03]
[1740589547478,85.64782333,137.66,137.63,0.03]
[1740589547890,84.64782333,137.66,137.63,0.03]
[1740589548193,85.64782333,137.66,137.63,0.03]
[1740589548556,19.07613357,137.65,137.63,0.03]
[1740589548756,9.20782333,137.64,137.63,0.03]
[1740589549057,9.20782333,137.64,137.63,0.0001]
[1740589549058,29.42611847,137.64,137.63,0.0001]
[1740589549286,31.02371847,137.64,137.63,0.0001]
[1740589549483,38.53421847,137.64,137.63,0.0001]
[1740589550466,38.53421847,137.64,137.6,0.03]
[1740589550467,19.07613357,137.62,137.6,0.03]
[1740589550686,1.78782333,137.63,137.6,0.03]
[1740589550896,2.78782333,137.63,137.6,0.03]
[1740589551187,15.5281,137.64,137.6,0.03]
[1740589552561,7.42,137.64,137.6,0.03]
[1740589552756,15.5173,137.66,137.6,0.03]
[1740589553987,15.5173,137.66,137.61,20.0]
[1740589554480,8.0973,137.66,137.61,20.0]
[1740589556476,9.88512333,137.66,137.61,20.0]
[1740589557182,10.88512333,137.66,137.6,0.03]
[1740589557382,1.0,137.65,137.6,0.03]
[1740589557586,9.88512333,137.66,137.6,0.03]
[1740589557884,9.88512333,137.66,137.61,20.0]
[1740589558062,8.0973,137.66,137.61,20.0]
[1740589558458,1.78782333,137.65,137.61,20.0]
[1740589558765,9.88512333,137.66,137.61,20.0]
[1740589558977,19.07613357,137.65,137.6,0.03]
[1740589559170,1.78782333,137.64,137.6,0.03]
[1740589559375,7.42,137.63,137.6,0.03]
[1740589559563,90.32,137.63,137.6,0.03]
[1740589559766,104.90611847,137.62,137.6,0.03]
[1740589560387,82.9,137.62,137.6,0.03]
[1740589560666,7.42,137.63,137.6,0.03]
[1740589560864,8.0973,137.66,137.6,0.03]
[1740589561668,82.9,137.67,137.62,20.0]
[1740589562174,82.9,137.67,137.61,20.0]
[1740589563069,82.9,137.67,137.62,20.0]
[1740589564285,217.583,137.7,137.65,20.0]
[1740589564589,103.7639569,137.69,137.6,0.03]
[1740589564768,82.9,137.68,137.6,0.03]
[1740589565097,82.9,137.68,137.62,20.0]
[1740589565279,103.7639569,137.67,137.62,20.0]
[1740589565992,82.9,137.67,137.62,20.0]
[1740589567472,84.68782333,137.67,137.62,20.0]
[1740589567893,104.11829514,137.66,137.61,0.03]
[1740589568090,18.933972,137.64,137.61,0.03]
[1740589568280,1.78782333,137.63,137.61,0.03]
[1740589568489,82.9,137.62,137.61,0.03]
[1740589568702,18.752572,137.62,137.6,0.03]
[1740589568884,1.78782333,137.61,137.6,0.03]
[1740589569765,1.78782333,137.64,137.6,0.03]
[1740589569972,1.0,137.64,137.6,0.03]
[1740589570173,82.9,137.64,137.6,0.03]
[1740589570583,17.13612333,137.65,137.6,0.03]
[1740589570871,0.063,137.67,137.63,20.0]
[1740589571190,0.063,137.67,137.63,27.2656]
[1740589571397,0.063,137.67,137.66,20.0]
[1740589572276,0.063,137.67,137.66,102.4]
[1740589572472,0.063,137.67,137.66,121.61829514]
[1740589572868,0.063,137.67,137.66,127.61869514]
[1740589573079,0.063,137.67,137.66,271.83869514]
[1740589573286,0.063,137.67,137.66,279.10289514]
[1740589573691,0.063,137.67,137.66,271.83869514]
[1740589574046,0.063,137.67,137.66,109.82]
[1740589574212,0.063,137.67,137.66,102.4]
[1740589575497,0.063,137.67,137.66,121.61829514]
[1740589575895,0.063,137.67,137.66,265.68249514]
[1740589576495,0.063,137.7,137.69,20.0]
[1740589576805,0.063,137.7,137.69,259.94273306]
[1740589577006,0.063,137.8,137.74,0.56864628]
[1740589577204,0.063,137.8,137.78,20.0]
[1740589577388,0.063,137.8,137.78,102.4]
[1740589579598,0.063,137.8,137.79,19.21829514]
[1740589579798,0.063,137.8,137.79,240.9417331]
[1740589580101,0.03,137.87,137.84,39.21829514]
[1740589580308,0.03,137.87,137.85,19.21829514]
[1740589580714,0.03,137.87,137.85,238.41829514]
[1740589581090,0.03,137.87,137.85,245.67239514]
[1740589581697,0.03,137.87,137.86,1.52271234]
[1740589582010,0.03,137.87,137.86,220.72271234]
[1740589582193,0.03,137.87,137.86,226.4537]
[1740589582815,0.03,137.87,137.86,227.02234628]
[1740589583021,0.03,137.87,137.86,245.67199514]
[1740589586437,0.03,137.87,137.86,82.4]
[1740589586913,0.03,137.87,137.86,108.87199514]
[1740589587121,0.03,137.87,137.86,110.39461694]
[1740589588139,0.03,137.87,137.86,132.26461694]
[1740589588347,0.03,137.87,137.86,117.79461694]
[1740589589341,0.0001,137.9,137.89,21.56864628]
[1740589589634,0.063,137.92,137.9,0.56864628]
[1740589589943,0.063,137.92,137.91,48.14032152]
[1740589590144,0.063,137.92,137.91,49.14032152]
[1740589591044,0.063,137.92,137.91,56.39142152]
[1740589591550,0.063,137.92,137.91,55.39142152]
[1740589591907,0.063,137.92,137.91,53.86939514]
[1740589592409,0.063,137.92,137.91,273.06939514]
[1740589592827,0.03,137.94,137.91,273.06939514]
[1740589593031,0.03,137.94,137.92,26.46879514]
[1740589593545,0.03,137.94,137.93,20.0]
[1740589594438,0.03,137.94,137.91,82.4]
[1740589594965,0.03,137.94,137.93,20.0]
[1740589595255,0.03,137.94,137.88,82.4]
[1740589595627,0.03,137.94,137.91,20.0]
[1740589595927,6.2386,137.93,137.91,20.0]
[1740589596123,0.03,137.94,137.91,102.4]
[1740589597024,0.03,137.94,137.91,109.6508]
[1740589598734,0.03,137.94,137.91,102.4]
[1740589599145,0.03,137.94,137.92,19.21829514]
[1740589600044,0.03,137.94,137.92,101.61829514]
[1740589600626,0.03,137.94,137.93,26.32613357]
[1740589600826,0.03,137.94,137.92,82.4]
[1740589601455,0.03,137.94,137.89,82.4]
[1740589601866,0.03,137.94,137.92,20.0]
[1740589602841,0.03,137.94,137.93,20.0]
[1740589603852,0.03,137.94,137.92,20.0]
[1740589604861,0.03,137.94,137.87,89.653]
[1740589605031,0.03,137.94,137.87,82.4]
[1740589605350,0.03,137.94,137.9,20.0]
[1740589605554,82.93,137.94,137.9,20.0]
[1740589606257,109.976272,137.93,137.84,82.4]
[1740589606448,84.68782333,137.92,137.84,82.4]
[1740589606642,92.08782333,137.92,137.87,20.0]
[1740589606842,82.9,137.91,137.87,20.0]
[1740589608855,18.933972,137.9,137.84,82.4]
[1740589609161,82.9,137.89,137.83,20.0]
[1740589609453,82.9,137.89,137.79,25.90684886]
[1740589609757,82.9,137.89,137.82,20.0]
[1740589609936,82.9,137.89,137.82,102.4]
[1740589611762,90.3,137.92,137.83,19.07613357]
[1740589611943,90.3,137.92,137.86,20.0]
[1740589612552,91.89939933,137.92,137.86,20.0]
[1740589613767,18.933972,137.91,137.86,20.0]
[1740589614863,82.9,137.92,137.86,20.0]
[1740589615048,82.9,137.92,137.87,20.0]
[1740589616069,8.1423,137.93,137.87,20.0]
[1740589616262,8.1423,137.93,137.88,20.0]
[1740589616641,101.833972,137.92,137.84,82.4]
[1740589616848,103.62179533,137.92,137.87,0.063]
[1740589617068,103.65179533,137.92,137.87,0.063]
[1740589617368,0.28432314,137.91,137.87,0.063]
[1740589617665,18.933972,137.88,137.81,82.4]
[1740589617858,18.933972,137.86,137.78,82.4]
[1740589618061,84.68782333,137.85,137.78,82.4]
[1740589618551,82.9,137.85,137.78,89.6578]
[1740589618759,82.9,137.85,137.81,20.0]
[1740589618951,7.4,137.87,137.81,20.0]
[1740589619152,103.62179533,137.86,137.81,20.0]
[1740589619447,103.62179533,137.86,137.78,82.4]
[1740589619649,82.9,137.85,137.78,82.4]
[1740589620168,82.9,137.84,137.77,0.063]
[1740589620365,9.49492333,137.83,137.79,20.0]
[1740589620554,7.7071,137.83,137.79,20.0]
[1740589620750,7.7071,137.83,137.79,27.2573]
[1740589620957,7.7071,137.83,137.77,82.463]
[1740589621581,111.02179533,137.82,137.77,0.063]
[1740589621867,112.02179533,137.82,137.77,0.063]
[1740589622370,0.14216157,137.8,137.77,0.063]
[1740589622573,82.9,137.79,137.77,0.063]
[1740589623267,0.14216157,137.78,137.77,0.063]
[1740589623597,92.6346849,137.78,137.73,0.063]
[1740589623773,0.14216157,137.76,137.73,0.063]
[1740589624097,90.3,137.77,137.73,0.063]
[1740589624098,92.08782333,137.77,137.73,0.063]
[1740589624458,90.3,137.77,137.73,0.063]
[1740589625083,1.9299849,137.76,137.73,0.063]
[1740589625275,1.78782333,137.76,137.73,0.063]
[1740589625482,0.14216157,137.76,137.73,0.063]
[1740589625888,92.08782333,137.77,137.73,0.063]
[1740589626071,90.3,137.77,137.73,0.063]
[1740589626273,82.9,137.77,137.73,0.063]
[1740589626479,7.8047,137.78,137.73,0.063]
[1740589627373,7.4,137.8,137.73,0.063]
[1740589627893,7.4,137.8,137.77,20.0]
[1740589631899,8.0401,137.81,137.77,20.0]
[1740589632085,1.5213,137.81,137.77,102.4]
[1740589632286,140.6958,137.84,137.77,102.4]
[1740589632287,140.6958,137.84,137.77,82.4]
[1740589632496,223.5958,137.84,137.77,82.4]
[1740589633594,0.14216157,137.83,137.77,82.4]
[1740589633793,1.9299849,137.83,137.77,82.4]
[1740589633995,82.9,137.82,137.73,97.1234]
[1740589634199,82.9,137.81,137.76,20.0]
[1740589637693,2.9299849,137.83,137.73,0.063]
[1740589637694,84.8299849,137.8,137.73,0.063]
[1740589637902,84.5356,137.79,137.73,0.063]
[1740589638102,6.0217,137.77,137.73,0.063]
[1740589638397,82.9,137.76,137.73,0.063]
[1740589639810,82.9,137.76,137.73,20.063]
[1740589640614,82.9,137.76,137.74,20.0]
[1740589641101,82.9,137.76,137.73,20.063]
[1740589641302,7.4,137.8,137.76,20.0]
[1740589641507,1.5844,137.82,137.77,20.0]
[1740589642013,1.5844,137.82,137.78,20.0]
[1740589642418,1.5844,137.82,137.77,20.0]
[1740589643208,90.8406,137.86,137.77,27.2582]
[1740589643414,90.8406,137.86,137.77,109.6582]
[1740589643815,90.8406,137.86,137.77,102.4]
[1740589644014,90.8406,137.86,137.77,109.6583]
[1740589644319,90.8406,137.86,137.78,19.21829514]
[1740589644700,82.9,137.89,137.81,20.0]
[1740589644910,82.9,137.89,137.81,102.4]
[1740589645213,8.0953,137.9,137.85,20.0]
[1740589645415,224.83,137.92,137.86,20.0]
[1740589646117,224.83,137.92,137.85,20.0]
[1740589647224,19.21829514,137.91,137.85,20.0]
[1740589647413,22.00611847,137.91,137.82,219.2]
[1740589647603,82.9,137.9,137.82,82.4]
[1740589648204,82.9,137.9,137.85,20.0]
[1740589649908,217.43,137.92,137.85,20.0]
[1740589650098,224.83,137.92,137.86,20.0]
[1740589651121,0.03,137.92,137.9,20.0]
[1740589654228,0.03,137.92,137.9,102.4]
[1740589662839,0.03,137.92,137.9,20.0]
[1740589663719,0.03,137.92,137.87,219.2]
[1740589663940,6.2701,137.91,137.84,82.4]
[1740589664324,6.2701,137.91,137.87,20.0]
[1740589664725,8.05792333,137.91,137.84,82.4]
[1740589665019,1.6316,137.9,137.84,82.4]
[1740589666552,1.6316,137.9,137.83,7.2552]
[1740589666553,3.41942333,137.9,137.82,82.4]
[1740589666853,83.18432314,137.89,137.81,7.38]
[1740589667023,83.18432314,137.89,137.8,89.6566]
[1740589667221,7.38,137.88,137.83,20.0]
[1740589667432,82.9,137.87,137.83,20.0]
[1740589667723,82.9,137.87,137.8,82.4]
[1740589669851,6.1773,137.85,137.8,20.0]
[1740589670021,89.0773,137.85,137.8,20.0]
[1740589670231,89.0773,137.85,137.81,20.0]
[1740589670446,82.9,137.84,137.78,0.16101441]
[1740589670640,82.9,137.84,137.8,20.0]
[1740589673151,82.9,137.84,137.82,20.0]
[1740589674671,82.9,137.87,137.81,20.0]
[1740589674878,82.9,137.87,137.82,20.0]
[1740589675038,84.68782333,137.87,137.82,20.0]
[1740589675239,82.9,137.87,137.82,20.0]
[1740589676148,82.9,137.87,137.81,20.0]
[1740589676463,6.1211,137.88,137.84,20.0]
[1740589677264,6.1211,137.88,137.81,82.4]
[1740589677445,6.1211,137.88,137.84,20.0]
[1740589681065,1.6316,137.9,137.84,20.0]
[1740589681286,96.9112,137.92,137.84,102.4]
[1740589681567,89.5312,137.92,137.84,102.4]
[1740589681750,0.28432314,137.91,137.84,102.4]
[1740589681948,2.07214647,137.91,137.84,102.4]
[1740589682568,89.5312,137.92,137.84,102.4]
[1740589684271,89.5312,137.92,137.85,0.16101441]
[1740589684767,89.5312,137.92,137.85,82.56101441]
[1740589685148,89.5312,137.92,137.88,20.0]
[1740589685770,82.93,137.92,137.88,20.0]
[1740589686285,0.03,137.92,137.88,20.0]
[1740589687375,0.03,137.92,137.89,20.0]
[1740589688178,0.03,137.92,137.9,20.0]
[1740589688982,0.03,137.92,137.91,20.0]
[1740589691093,0.03,137.92,137.91,27.2511]
[1740589691507,0.03,137.92,137.91,128.72723357]
[1740589692215,0.03,137.92,137.91,121.47613357]
[1740589692703,0.03,137.92,137.91,128.72723357]
[1740589693604,0.03,137.92,137.91,121.47613357]
[1740589694071,0.03,137.94,137.92,19.21829514]
[1740589694271,0.03,137.94,137.92,238.41829514]
[1740589694572,0.03,137.94,137.92,238.27613357]
[1740589694767,0.03,137.94,137.92,219.2]
[1740589696099,0.03,137.94,137.92,82.4]
[1740589697100,0.03,137.94,137.87,93.25615777]
[1740589697394,0.03,137.94,137.87,82.4]
[1740589697591,0.03,137.94,137.9,20.0]
[1740589697802,0.03,137.94,137.87,82.4]
[1740589698211,0.03,137.94,137.9,20.0]
[1740589700312,0.03,137.94,137.9,27.2515]
[1740589700604,0.03,137.94,137.9,109.6515]
[1740589700783,0.03,137.94,137.9,102.4]
[1740589701485,0.03,137.94,137.88,82.4]
[1740589702103,0.03,137.94,137.91,20.0]
[1740589703186,0.03,137.94,137.88,89.6524]
[1740589703187,82.9,137.93,137.87,0.063]
[1740589703390,84.68782333,137.93,137.87,0.063]
[1740589703595,1.5345,137.91,137.87,0.063]
[1740589704614,84.4345,137.91,137.87,0.063]
[1740589704797,1.78782333,137.9,137.87,0.063]
[1740589704985,84.68782333,137.9,137.87,0.063]
[1740589705825,0.28432314,137.89,137.87,0.063]
[1740589706329,92.06782333,137.9,137.87,0.063]
[1740589707710,90.28,137.9,137.87,0.063]
[1740589707893,1.5345,137.91,137.88,20.0]
[1740589708099,6.0575,137.92,137.87,82.463]
[1740589708512,6.0575,137.92,137.87,89.716]
[1740589708803,6.0575,137.92,137.87,82.463]
[1740589709010,6.0575,137.92,137.87,89.716]
[1740589710431,6.0575,137.92,137.87,82.463]
[1740589711522,6.0575,137.92,137.87,0.063]
[1740589711899,7.84532333,137.92,137.87,20.063]
[1740589712104,82.9,137.91,137.87,0.063]
[1740589712517,82.9,137.91,137.87,20.063]
[1740589712829,82.9,137.91,137.87,0.063]
[1740589713126,82.9,137.91,137.87,20.063]
[1740589714197,83.18432314,137.9,137.87,0.063]
[1740589714710,82.9,137.89,137.87,0.063]
[1740589715723,106.54441847,137.88,137.87,0.0001]
[1740589715912,0.28432314,137.86,137.85,1.441e-05]
[1740589716111,2.07214647,137.86,137.85,1.441e-05]
[1740589716314,21.00611847,137.86,137.85,1.441e-05]
[1740589716513,28.38611847,137.86,137.85,1.441e-05]
[1740589716712,35.10628713,137.86,137.77,82.463]
[1740589716915,0.28432314,137.82,137.77,0.063]
[1740589717113,8.1876,137.81,137.77,0.063]
[1740589717430,15.5676,137.81,137.77,0.063]
[1740589720007,0.28432314,137.8,137.77,0.063]
[1740589720206,1.5339,137.84,137.77,0.063]
[1740589720426,1.5339,137.84,137.78,20.0]
[1740589722212,82.9,137.87,137.82,20.0]
[1740589723627,82.9,137.87,137.84,20.0]
[1740589724132,82.9,137.87,137.82,20.0]
[1740589724630,82.9,137.87,137.79,82.4]
[1740589724808,82.9,137.87,137.78,0.063]
[1740589724809,82.9,137.86,137.78,0.063]
[1740589725004,90.28,137.86,137.8,20.0]
[1740589725622,82.9,137.85,137.8,20.0]
[1740589727016,84.5646,137.85,137.8,20.0]
[1740589729227,84.5646,137.89,137.83,20.0]
[1740589729424,84.5646,137.89,137.81,82.4]
[1740589729624,84.5646,137.89,137.84,20.0]
[1740589730829,84.5646,137.89,137.81,82.4]
[1740589731537,0.42648471,137.88,137.81,82.4]
[1740589731752,0.42648471,137.86,137.78,0.063]
[1740589732037,82.9,137.85,137.8,20.0]
[1740589732438,82.9,137.85,137.78,0.063]
[1740589733315,82.9,137.84,137.78,20.063]
[1740589734216,82.9,137.84,137.8,20.0]
[1740589735338,82.9,137.84,137.78,20.063]
[1740589738027,2.24430804,137.85,137.78,20.063]
[1740589738028,82.9,137.83,137.78,20.063]
[1740589738216,2.24430804,137.85,137.78,20.063]
[1740589738217,82.9,137.82,137.78,20.063]
[1740589742139,82.9,137.81,137.78,0.063]
[1740589742745,0.42648471,137.79,137.78,0.0001]
[1740589742961,0.42648471,137.79,137.77,0.0001]
[1740589743552,2.21430804,137.78,137.77,0.0001]
[1740589745453,2.21430804,137.78,137.68,83.6277]
[1740589745756,82.9,137.77,137.68,83.6277]
[1740589745931,82.9,137.77,137.71,20.0]
[1740589746248,2.9299849,137.81,137.74,20.0]
[1740589746249,82.9,137.81,137.74,20.0]
[1740589746435,82.9,137.81,137.75,20.0]
[1740589747644,82.9,137.81,137.76,20.0]
[1740589748553,7.9082,137.83,137.75,0.03]
[1740589748554,82.9,137.8,137.75,0.03]
[1740589748760,0.42648471,137.79,137.75,0.03]
[1740589749666,1.5533,137.77,137.75,0.03]
[1740589749956,84.4533,137.77,137.75,0.03]
[1740589751040,88.9508,137.76,137.75,0.03]
[1740589755953,6.0508,137.76,137.75,0.03]
[1740589757471,8.9333,137.77,137.75,0.03]
[1740589759677,8.9333,137.77,137.68,82.4]
[1740589759678,0.56864628,137.76,137.68,82.4]
[1740589759861,82.9,137.75,137.65,83.9276]
[1740589760069,82.9,137.74,137.69,20.0]
[1740589760269,8.9333,137.77,137.71,20.0]
[1740589760270,82.9,137.76,137.71,20.0]
[1740589764776,82.9,137.75,137.7,20.0]
[1740589765492,82.9,137.75,137.68,0.03]
[1740589765493,84.68782333,137.75,137.68,0.03]
[1740589765676,83.32648471,137.74,137.68,0.03]
[1740589765871,7.85442333,137.73,137.68,0.03]
[1740589769378,1.6632,137.7,137.68,0.03]
[1740589769686,82.9,137.69,137.68,0.03]
[1740589772093,83.32648471,137.68,137.64,0.063]
[1740589772312,82.9,137.67,137.64,0.063]
[1740589779908,83.32648471,137.66,137.64,0.063]
[1740589780106,91.36090804,137.66,137.64,0.063]
[1740589780694,101.97613357,137.65,137.64,0.0001]
[1740589780902,19.07613357,137.65,137.64,0.0001]
[1740589782690,20.80639514,137.65,137.64,0.0001]
[1740589786797,8.03442333,137.66,137.64,0.0001]
[1740589787004,0.063,137.68,137.64,0.0001]
[1740589787300,0.48948471,137.68,137.64,0.0001]
[1740589787595,0.063,137.68,137.64,0.0001]
[1740589788102,0.48948471,137.68,137.64,0.0001]
[1740589788604,0.34732314,137.68,137.64,0.0001]
[1740589789095,0.063,137.68,137.64,0.0001]
[1740589789493,0.063,137.68,137.64,20.0001]
[1740589789701,0.063,137.68,137.65,20.0]
[1740589793803,0.063,137.68,137.64,0.0001]
[1740589795758,82.9,137.67,137.64,0.0001]
[1740589796035,3.77640804,137.66,137.63,0.0431]
[1740589797352,0.42648471,137.64,137.63,0.0001]
[1740589797529,2.21430804,137.64,137.63,0.0001]
[1740589798856,0.42648471,137.64,137.63,0.0001]
[1740589800946,1.5621,137.66,137.63,0.0001]
[1740589801427,2.21430804,137.65,137.63,0.0001]
[1740589802851,1.78782333,137.65,137.63,0.0001]
[1740589803025,1.5621,137.66,137.63,0.0001]
[1740589803430,82.9,137.65,137.63,0.0001]
[1740589804840,82.963,137.68,137.63,20.0001]
[1740589805037,0.063,137.68,137.64,20.0]
[1740589805237,0.063,137.68,137.64,103.9841]
[1740589807132,0.063,137.68,137.67,20.56864628]
[1740589807334,11.3418787,137.75,137.71,20.0]
[1740589808152,82.9,137.76,137.71,20.0]
[1740589808360,0.42648471,137.75,137.71,20.0]
[1740589808963,82.9,137.75,137.7,20.0]
[1740589809680,82.963,137.77,137.71,20.0]
[1740589811370,82.963,137.77,137.72,20.0]
[1740589811576,0.063,137.77,137.74,20.0]
[1740589812091,0.063,137.77,137.75,25.68473357]
[1740589812266,0.063,137.77,137.75,32.94393357]
[1740589812469,0.063,137.77,137.75,25.68473357]
[1740589812795,0.063,137.77,137.75,6.6086]
[1740589813288,0.063,137.77,137.74,7.36]
[1740589814060,0.063,137.77,137.75,20.0]
[1740589815007,0.063,137.77,137.71,6.6086]
[1740589815382,0.063,137.77,137.74,20.0]
[1740589816506,0.063,137.77,137.73,20.0]
[1740589817980,82.9,137.76,137.72,20.0]
[1740589819904,82.963,137.76,137.72,20.0]
[1740589820903,82.963,137.76,137.71,20.0]
[1740589821104,82.9,137.75,137.71,20.0]
[1740589823806,0.063,137.76,137.74,20.0]
[1740589824106,0.063,137.76,137.75,20.60014463]
[1740589824284,0.063,137.76,137.75,34.6249062]
[1740589825916,0.063,137.81,137.8,21.0]
[1740589826209,0.063,137.81,137.8,249.63171874]
[1740589826402,0.063,137.81,137.8,247.10864628]
[1740589826716,0.063,137.81,137.8,266.75829514]
[1740589826890,0.063,137.81,137.8,274.01509514]
[1740589827287,0.063,137.81,137.8,273.01509514]
[1740589827495,0.063,137.81,137.8,265.75829514]
[1740589827699,0.063,137.81,137.8,266.75829514]
[1740589828008,0.063,137.81,137.8,275.01509514]
[1740589828596,0.063,137.81,137.8,274.01509514]
[1740589828800,0.063,137.81,137.8,265.75829514]
[1740589828998,0.063,137.81,137.8,266.75829514]
[1740589829395,0.063,137.81,137.8,265.75829514]
[1740589829598,0.063,137.81,137.8,266.75829514]
[1740589829799,0.063,137.81,137.8,265.75829514]
[1740589830207,0.063,137.81,137.8,128.95829514]
[1740589830519,0.03,137.85,137.81,2.0]
[1740589830728,0.03,137.85,137.84,20.0]
[1740589831524,0.03,137.85,137.83,20.0]
[1740589833002,0.03,137.85,137.84,40.74126752]
[1740589833322,0.03,137.85,137.84,39.07613357]
[1740589833616,0.03,137.85,137.84,40.74118748]
[1740589833818,0.03,137.85,137.84,39.07613357]
[1740589834520,0.03,137.85,137.83,82.4]
[1740589835324,0.03,137.85,137.8,89.74]
[1740589837023,0.03,137.85,137.83,20.0]
[1740589837702,0.03,137.85,137.82,20.0]
[1740589839422,1.6048,137.85,137.82,20.0]
[1740589839600,1.6048,137.85,137.81,20.0]
[1740589840516,6.6423,137.84,137.75,219.2]
[1740589840718,82.9,137.83,137.75,82.4]
[1740589841026,82.9,137.83,137.78,20.0]
[1740589841323,6.6423,137.84,137.8,20.0]
[1740589842026,6.6423,137.84,137.78,20.0]
[1740589843622,6.6423,137.84,137.79,20.0]
[1740589844640,6.6423,137.84,137.78,20.0]
[1740589844928,89.5423,137.84,137.78,20.0]
[1740589845308,89.5423,137.84,137.78,20.03]
[1740589846024,89.5423,137.84,137.8,20.0]
[1740589846926,89.5423,137.84,137.79,20.0]
[1740589847232,82.9,137.83,137.78,0.03]
[1740589847415,82.9,137.83,137.78,20.03]
[1740589849515,82.9,137.83,137.79,20.0]
[1740589849917,6.6423,137.84,137.79,20.0]
[1740589851128,6.6423,137.84,137.78,0.03]
[1740589851330,6.6423,137.84,137.78,20.03]
[1740589852015,1.6048,137.85,137.8,20.0]
[1740589852913,1.6048,137.85,137.78,7.37]
[1740589852914,6.1868,137.83,137.78,0.03]
[1740589853627,1.5882,137.82,137.78,0.03]
[1740589854204,84.4882,137.82,137.78,0.03]
[1740589856220,86.27602333,137.82,137.78,0.03]
[1740589856639,0.42648471,137.81,137.78,0.03]
[1740589856933,101.97613357,137.81,137.78,0.03]
[1740589857116,83.32648471,137.81,137.78,0.03]
[1740589857730,7.34,137.8,137.78,0.03]
[1740589857928,82.9,137.79,137.78,0.03]
[1740589859147,6.0403,137.77,137.73,20.0]
[1740589859446,88.9403,137.77,137.73,20.0]
[1740589859952,88.9403,137.77,137.7,82.4]
[1740589860668,1.6507,137.76,137.71,20.0]
[1740589860948,82.9,137.75,137.71,20.0]
[1740589861240,82.9,137.75,137.69,20.0]
[1740589861542,90.24,137.75,137.69,20.0]
[1740589862244,82.9,137.74,137.69,20.0]
[1740589862452,82.9,137.73,137.68,0.03]
[1740589862626,82.9,137.72,137.68,0.03]
[1740589862836,6.1588,137.71,137.68,0.03]
[1740589863146,89.0588,137.71,137.68,0.03]
[1740589863646,1.5494,137.7,137.68,0.03]
[1740589864150,8.8894,137.7,137.68,0.03]
[1740589864512,8.8894,137.7,137.68,0.0001]